bitfinex-derivatives/quotes_BTCF0:USTF0_20251220
["timestamp","ask_amount","ask_price","bid_price","bid_amount"]
[1766215164569,0.0543213,88299.0,88282.0,0.02836]
[1766215164770,0.02836,88299.0,88282.0,0.02836]
[1766215165182,0.0113315,88298.0,88282.0,0.02836]
[1766215166277,0.02836,88297.0,88282.0,0.02836]
[1766215169882,0.0113314,88299.0,88282.0,0.02836]
[1766215170183,0.05432456,88298.0,88282.0,0.02836]
[1766215170376,0.02836,88298.0,88282.0,0.02836]
[1766215170976,0.0113337,88281.0,88255.0,0.0113369]
[1766215171280,0.29955651,88280.0,88257.0,0.01548]
[1766215171471,0.0113345,88275.0,88257.0,0.01548]
[1766215171875,0.01150444,88275.0,88257.0,0.01564994]
[1766215172181,0.01150444,88275.0,88260.0,0.27119651]
[1766215172774,0.01150444,88275.0,88257.0,0.01564994]
[1766215173082,0.0113349,88272.0,88257.0,0.01564994]
[1766215173381,0.00016994,88275.0,88257.0,0.01564994]
[1766215173765,0.27119651,88270.0,88246.0,0.0113381]
[1766215173973,0.27119651,88260.0,88243.0,0.00356]
[1766215174272,0.27119651,88260.0,88239.0,0.011339]
[1766215174273,0.0113358,88265.0,88244.0,0.00356]
[1766215174472,0.27119651,88260.0,88244.0,0.00356]
[1766215175078,0.00012015,88259.0,88244.0,0.00356]
[1766215175980,0.27119651,88254.0,88216.0,0.09177505]
[1766215176179,0.27119651,88250.0,88230.0,0.27119651]
[1766215176387,0.00012015,88259.0,88230.0,0.27119651]
[1766215176388,0.02836,88249.0,88232.0,0.0113399]
[1766215176879,0.00012015,88259.0,88239.0,0.27119651]
[1766215177086,0.02852994,88258.0,88240.0,0.00011339]
[1766215177287,0.02836,88257.0,88240.0,0.00011339]
[1766215177585,0.02836,88257.0,88240.0,0.2713099]
[1766215177783,0.00016994,88258.0,88240.0,0.2713099]
[1766215177973,0.00012015,88259.0,88247.0,0.28253441]
[1766215178174,1.5e-07,88259.0,88249.0,0.0113377]
[1766215179878,1.5e-07,88259.0,88249.0,0.28253421]
[1766215180180,1.5e-07,88259.0,88252.0,0.0113373]
[1766215180480,9e-08,88263.0,88252.0,0.0113373]
[1766215180781,9e-08,88263.0,88250.0,0.0113376]
[1766215181084,9e-08,88263.0,88251.0,0.02836]
[1766215181883,0.27119651,88261.0,88251.0,0.02836]
[1766215182078,0.27119651,88261.0,88251.0,0.01836]
[1766215182280,0.27119651,88261.0,88250.0,0.02836]
[1766215182485,9e-08,88263.0,88250.0,0.02836]
[1766215182676,9e-08,88263.0,88243.0,0.0113385]
[1766215182875,9e-08,88263.0,88244.0,0.02836]
[1766215183277,9e-08,88263.0,88245.0,0.02836]
[1766215183278,0.27119651,88260.0,88245.0,0.02836]
[1766215183578,0.02836,88262.0,88245.0,0.0396983]
[1766215183784,0.02836,88262.0,88250.0,0.27119651]
[1766215183985,0.02836,88262.0,88245.0,0.0396983]
[1766215184383,0.02836,88262.0,88245.0,0.03986824]
[1766215184989,0.02836,88262.0,88250.0,0.27119651]
[1766215185384,0.02836,88262.0,88245.0,0.03986824]
[1766215186392,0.02836,88262.0,88248.0,0.0113378]
[1766215192089,0.27138133,88260.0,88231.0,1.44564]
[1766215192286,0.0113369,88256.0,88237.0,0.0113393]
[1766215192686,0.28271773,88260.0,88237.0,0.0113393]
[1766215192987,0.02836,88262.0,88240.0,0.00016985]
[1766215193489,0.02836,88262.0,88243.0,0.0113385]
[1766215193882,0.0396961,88262.0,88243.0,0.0113385]
[1766215194598,0.02836,88262.0,88243.0,0.0113385]
[1766215195196,0.02836,88262.0,88244.0,0.0113384]
[1766215195502,9e-08,88263.0,88244.0,0.0113384]
[1766215197289,0.02840009,88263.0,88244.0,0.0113384]
[1766215199485,0.03973609,88263.0,88244.0,0.0113384]
[1766215203290,0.02840009,88263.0,88244.0,0.0113384]
[1766215204099,0.02840009,88263.0,88247.0,0.011338]
[1766215207202,0.02840009,88263.0,88242.0,0.02836]
[1766215207910,0.02840009,88263.0,88243.0,0.0113385]
[1766215208405,0.02840009,88263.0,88245.0,0.0113381]
[1766215209192,0.02840009,88263.0,88248.0,0.0113379]
[1766215209593,0.02840009,88263.0,88230.0,1.7171268]
[1766215209906,0.02840009,88263.0,88249.0,0.0113377]
[1766215211507,0.02840009,88263.0,88245.0,0.192607]
[1766215212316,0.02840009,88263.0,88249.0,0.0113377]
[1766215214106,0.02840009,88263.0,88253.0,0.0113372]
[1766215214317,0.02840009,88263.0,88249.0,0.0113377]
[1766215215908,0.02840009,88263.0,88245.0,0.2039452]
[1766215217525,0.02840009,88263.0,88248.0,0.0113378]
[1766215225220,0.02840009,88263.0,88248.0,0.0113379]
[1766215226530,0.02840009,88263.0,88249.0,0.0113377]
[1766215227124,0.02840009,88263.0,88252.0,0.0113374]
[1766215232035,0.02840009,88263.0,88245.0,0.192607]
[1766215232255,0.02840009,88263.0,88256.0,0.0113368]
[1766215232439,0.013,88280.0,88261.0,0.0113361]
[1766215232730,0.02668547,88279.0,88261.0,0.0113361]
[1766215232935,0.02668547,88278.0,88261.0,0.0113361]
[1766215233137,0.02668547,88277.0,88261.0,0.0113361]
[1766215233324,0.00016994,88278.0,88261.0,0.0113361]
[1766215233521,0.02656821,88277.0,88261.0,0.0113361]
[1766215233722,0.00016994,88278.0,88261.0,0.0113361]
[1766215233933,0.0265682,88277.0,88261.0,0.0113361]
[1766215234135,0.00016994,88278.0,88261.0,0.0113361]
[1766215234335,0.02656182,88277.0,88261.0,0.0113361]
[1766215234536,0.00016994,88278.0,88261.0,0.0113361]
[1766215234731,0.02656198,88277.0,88261.0,0.0113361]
[1766215234936,0.00016994,88278.0,88261.0,0.0113361]
[1766215236336,0.00016994,88278.0,88257.0,0.0113367]
[1766215238243,0.01150394,88278.0,88257.0,0.0113367]
[1766215238538,0.0113344,88275.0,88253.0,0.0396972]
[1766215239736,0.00016994,88278.0,88257.0,0.0113367]
[1766215241338,0.00016994,88278.0,88253.0,0.0396971]
[1766215241339,0.0113342,88277.0,88253.0,0.0396971]
[1766215245337,0.0113342,88277.0,88256.0,0.0113368]
[1766215246340,0.00016994,88278.0,88256.0,0.0113368]
[1766215247544,0.00016994,88278.0,88260.0,0.33915123]
[1766215249744,0.00016994,88278.0,88260.0,0.36751123]
[1766215251844,0.00016994,88278.0,88260.0,0.02836]
[1766215251845,0.0113343,88276.0,88260.0,0.02836]
[1766215252149,0.0113343,88276.0,88259.0,0.02836]
[1766215253838,0.0113343,88276.0,88255.0,0.0113369]
[1766215254048,0.0113343,88276.0,88256.0,0.02836]
[1766215255754,0.0113343,88276.0,88257.0,0.02836]
[1766215256753,0.00016994,88278.0,88258.0,0.0113365]
[1766215257055,0.02654775,88277.0,88258.0,0.0113365]
[1766215257241,0.02654775,88276.0,88258.0,0.0113365]
[1766215257443,0.0113342,88277.0,88258.0,0.0113365]
[1766215257647,0.02655023,88276.0,88258.0,0.02836]
[1766215257847,0.0113342,88277.0,88258.0,0.02836]
[1766215258049,0.02655023,88276.0,88258.0,0.02836]
[1766215258250,0.0113342,88277.0,88258.0,0.02836]
[1766215258452,0.02655309,88276.0,88258.0,0.02836]
[1766215258659,0.0113342,88277.0,88258.0,0.02836]
[1766215258954,0.0265531,88276.0,88258.0,0.02836]
[1766215259248,0.0113342,88277.0,88258.0,0.02836]
[1766215259553,0.02655654,88276.0,88258.0,0.02836]
[1766215259752,0.0113342,88277.0,88258.0,0.02836]
[1766215259954,0.02655651,88276.0,88258.0,0.02836]
[1766215260154,0.02656039,88275.0,88258.0,0.02836]
[1766215260354,0.0113342,88277.0,88258.0,0.02836]
[1766215260554,0.02656039,88276.0,88258.0,0.02836]
[1766215260763,0.33915123,88270.0,88258.0,0.02836]
[1766215261355,0.33915123,88270.0,88254.0,0.039697]
[1766215262151,0.02836,88272.0,88257.0,0.0113367]
[1766215262346,0.33915123,88267.0,88248.0,0.0113378]
[1766215262548,0.33915123,88267.0,88230.0,0.14198204]
[1766215262549,0.67830246,88260.0,88231.0,0.01134]
[1766215262751,0.00016994,88254.0,88240.0,0.33915123]
[1766215263958,0.02852994,88254.0,88240.0,0.33915123]
[1766215266358,0.02852994,88254.0,88237.0,0.02836]
[1766215266560,0.33915123,88250.0,88237.0,0.02836]
[1766215266751,0.33915123,88250.0,88236.0,0.0284]
[1766215266951,0.33915123,88250.0,88235.0,0.0284]
[1766215268462,0.33915123,88250.0,88230.0,0.33915123]
[1766215268656,0.33915123,88250.0,88231.0,0.0284]
[1766215268960,0.33936313,88250.0,88231.0,0.0284]
[1766215270361,0.33936313,88250.0,88230.0,0.33936313]
[1766215270362,0.33936313,88250.0,88232.0,0.0284]
[1766215272066,0.33936313,88250.0,88230.0,0.33936313]
[1766215272268,0.33936313,88250.0,88231.0,0.0284]
[1766215275161,0.33936313,88250.0,88232.0,0.0113398]
[1766215275863,0.0284,88249.0,88232.0,0.0113398]
[1766215277967,0.0284,88249.0,88231.0,0.0397401]
[1766215279169,0.0284,88249.0,88231.0,0.0284]
[1766215280165,0.0113379,88248.0,88231.0,0.0284]
[1766215280366,0.0284,88249.0,88231.0,0.0284]
[1766215280867,0.0284,88249.0,88232.0,0.0113398]
[1766215288771,0.0284,88249.0,88235.0,0.0113396]
[1766215288971,0.0284,88249.0,88231.0,0.03974]
[1766215289274,0.0284,88249.0,88234.0,0.0113396]
[1766215292782,0.0284,88249.0,88236.0,0.0113394]
[1766215292971,0.0284,88249.0,88231.0,0.0284]
[1766215293777,0.0284,88249.0,88235.0,0.0113395]
[1766215297385,0.0284,88249.0,88231.0,0.03974]
[1766215302589,0.0284,88249.0,88234.0,0.0113397]
[1766215306507,0.0284,88249.0,88231.0,0.0284]
[1766215309304,0.0284,88249.0,88224.0,0.08120709]
[1766215309305,0.0113379,88248.0,88226.0,0.0113406]
[1766215309498,0.0113383,88245.0,88226.0,0.0113406]
[1766215309901,0.33939303,88240.0,88226.0,0.0113406]
[1766215310406,0.02836,88243.0,88226.0,0.0113406]
[1766215314714,0.02836,88243.0,88221.0,0.08120709]
[1766215314904,0.02836,88243.0,88228.0,0.0113404]
[1766215315110,0.02836,88243.0,88228.0,0.0113004]
[1766215318916,0.02836,88243.0,88221.0,0.08120709]
[1766215319210,0.0113395,88236.0,88216.0,0.0113419]
[1766215319513,0.02444994,88235.0,88216.0,0.0113419]
[1766215319709,0.02444994,88235.0,88215.0,0.0113421]
[1766215320711,0.02444994,88235.0,88217.0,0.0113419]
[1766215320918,0.02444994,88235.0,88219.0,0.0113415]
[1766215321215,0.02444994,88235.0,88213.0,0.02836]
[1766215322016,0.02444994,88235.0,88221.0,0.0113413]
[1766215323524,0.02444994,88235.0,88218.0,0.0113416]
[1766215326925,0.02444994,88235.0,88221.0,0.0113413]
[1766215328729,0.02444994,88235.0,88225.0,0.0113408]
[1766215329121,0.02444994,88235.0,88221.0,0.0113412]
[1766215330126,0.02444994,88235.0,88213.0,0.02836]
[1766215332036,0.02444994,88235.0,88219.0,0.0113416]
[1766215332524,0.02444994,88235.0,88222.0,0.0113412]
[1766215335820,0.02444994,88235.0,88218.0,0.0113417]
[1766215336322,4e-08,88235.0,88227.0,0.0113406]
[1766215336823,4e-08,88235.0,88230.0,0.0113401]
[1766215337030,0.0113365,88259.0,88237.0,0.0113393]
[1766215337234,1.44608,88262.0,88224.0,0.00796]
[1766215337235,0.05510619,88258.0,88230.0,0.3393364]
[1766215337529,0.3393364,88270.0,88224.0,0.00796]
[1766215337721,0.0284,88269.0,88242.0,0.0113386]
[1766215337922,0.00016994,88264.0,88247.0,0.00016994]
[1766215339023,0.00016994,88264.0,88248.0,0.0113378]
[1766215340427,0.00016994,88264.0,88247.0,0.00016994]
[1766215344036,0.00016994,88264.0,88247.0,0.01150794]
[1766215344822,0.00016994,88264.0,88247.0,0.00016994]
[1766215349435,0.011336,88263.0,88247.0,0.00016994]
[1766215353837,0.00016994,88264.0,88240.0,0.00512]
[1766215353838,0.3506729,88260.0,88240.0,0.00512]
[1766215354039,0.3506729,88260.0,88240.0,0.02836]
[1766215354040,0.0113365,88260.0,88240.0,0.02836]
[1766215354230,0.3506729,88260.0,88240.0,0.02836]
[1766215354939,0.0113368,88257.0,88240.0,0.02836]
[1766215357736,0.02836,88257.0,88183.0,0.0567308]
[1766215357932,4e-08,88245.0,88225.0,1.4458]
[1766215358132,4e-08,88245.0,88230.0,0.3393364]
[1766215359335,4e-08,88245.0,88236.0,0.0113393]
[1766215359539,4e-08,88245.0,88237.0,0.02836]
[1766215360234,4e-08,88245.0,88238.0,0.0113392]
[1766215362746,4e-08,88245.0,88241.0,0.0113387]
[1766215385753,4e-08,88245.0,88243.0,0.0113385]
[1766215385946,4e-08,88245.0,88244.0,0.02836]
[1766215408786,4e-08,88245.0,88239.0,0.011339]
[1766215408985,4e-08,88245.0,88240.0,0.02836]
[1766215409287,4e-08,88245.0,88241.0,0.0113388]
[1766215410876,4e-08,88245.0,88243.0,0.0113385]
[1766215412787,4e-08,88245.0,88243.0,0.0396985]
[1766215414599,4e-08,88245.0,88243.0,0.02836]
[1766215416089,4e-08,88245.0,88233.0,0.08120709]
[1766215416290,4e-08,88245.0,88242.0,0.0113386]
[1766215416497,4e-08,88245.0,88243.0,0.02836]
[1766215417189,4e-08,88245.0,88244.0,0.0113384]
[1766215436906,4e-08,88245.0,88242.0,0.02836]
[1766215438010,4e-08,88245.0,88241.0,0.0113388]
[1766215438309,4e-08,88245.0,88243.0,0.0113385]
[1766215478333,0.0113353,88269.0,88238.0,0.02836]
[1766215478533,0.0113355,88267.0,88248.0,0.0113379]
[1766215478831,0.02662834,88266.0,88248.0,0.0113379]
[1766215479022,0.02662834,88265.0,88248.0,0.0113379]
[1766215479221,0.02662834,88264.0,88248.0,0.0113379]
[1766215479416,0.02662834,88263.0,88248.0,0.0113379]
[1766215479625,0.00016994,88265.0,88248.0,0.0113379]
[1766215479825,0.0266275,88264.0,88248.0,0.0113379]
[1766215480029,0.0266275,88263.0,88248.0,0.0113379]
[1766215480222,0.00016994,88265.0,88248.0,0.0113379]
[1766215480427,0.02662747,88264.0,88248.0,0.0113379]
[1766215480625,0.02662747,88263.0,88248.0,0.0113379]
[1766215480827,0.00016994,88265.0,88248.0,0.0113379]
[1766215481022,0.0266269,88264.0,88248.0,0.0113379]
[1766215481222,0.0266269,88263.0,88248.0,0.0113379]
[1766215481423,0.00016994,88265.0,88248.0,0.0113379]
[1766215481717,0.0266263,88264.0,88248.0,0.0113379]
[1766215481922,0.0266263,88263.0,88248.0,0.0113379]
[1766215482122,0.00016994,88265.0,88248.0,0.0113379]
[1766215482322,0.02662627,88264.0,88248.0,0.0113379]
[1766215482522,0.02662627,88263.0,88248.0,0.0113379]
[1766215482726,0.00016994,88265.0,88248.0,0.0113379]
[1766215482926,0.02662578,88264.0,88248.0,0.0113379]
[1766215483223,0.02662578,88263.0,88248.0,0.0113379]
[1766215483419,0.00016994,88265.0,88248.0,0.0113379]
[1766215483622,0.0266254,88264.0,88248.0,0.0113379]
[1766215483829,0.0266254,88263.0,88248.0,0.0113379]
[1766215484033,0.00016994,88265.0,88248.0,0.0113379]
[1766215484231,0.02662541,88264.0,88248.0,0.0113379]
[1766215484431,0.02662541,88263.0,88248.0,0.0113379]
[1766215484729,0.00016994,88265.0,88248.0,0.0113379]
[1766215484930,0.02662508,88264.0,88248.0,0.0113379]
[1766215485129,0.02662508,88263.0,88248.0,0.0113379]
[1766215485331,0.00016994,88265.0,88248.0,0.0113379]
[1766215485533,0.02662499,88264.0,88248.0,0.0113379]
[1766215485733,0.02662499,88263.0,88248.0,0.0113379]
[1766215485924,0.00016994,88265.0,88248.0,0.0113379]
[1766215486126,0.02662497,88264.0,88248.0,0.0113379]
[1766215486433,0.02662497,88263.0,88248.0,0.0113379]
[1766215486738,0.0396942,88277.0,88256.0,0.0113368]
[1766215486930,0.33929061,88270.0,88252.0,0.0113373]
[1766215487132,0.02836,88269.0,88252.0,0.0113373]
[1766215487636,0.00016994,88269.0,88252.0,0.0113373]
[1766215487836,0.00016994,88269.0,88255.0,0.0113369]
[1766215489624,0.00016994,88269.0,88249.0,0.00632]
[1766215489831,0.00016994,88269.0,88250.0,0.0113376]
[1766215491538,0.33927116,88260.0,88250.0,0.0113376]
[1766215493945,0.02836,88263.0,88250.0,0.0113376]
[1766215494135,0.33927116,88260.0,88250.0,0.0113376]
[1766215496247,0.02836,88263.0,88250.0,0.0113376]
[1766215496447,0.33927116,88260.0,88250.0,0.0113376]
[1766215501961,0.33927116,88260.0,88253.0,0.0113372]
[1766215502155,0.36763116,88263.0,88249.0,0.0176576]
[1766215502463,0.33927116,88260.0,88249.0,0.0176576]
[1766215503160,0.02836,88263.0,88252.0,0.0113374]
[1766215503361,0.33927116,88262.0,88249.0,0.00632]
[1766215503564,0.33927116,88262.0,88250.0,0.0113376]
[1766215503762,0.33927116,88260.0,88250.0,0.0113376]
[1766215504165,0.02836,88259.0,88250.0,0.0113376]
[1766215507975,0.02836,88258.0,88250.0,0.0113376]
[1766215508873,0.02836,88259.0,88250.0,0.0113376]
[1766215514577,0.02836,88259.0,88247.0,0.00016994]
[1766215514775,0.33927525,88257.0,88241.0,0.0396988]
[1766215515077,0.33927525,88251.0,88241.0,0.0113388]
[1766215515468,0.02836,88255.0,88241.0,0.0113388]
[1766215515673,5e-08,88251.0,88244.0,0.0113384]
[1766215515872,0.33927525,88254.0,88244.0,0.0113384]
[1766215516065,0.02836,88255.0,88244.0,0.0113384]
[1766215516676,0.33927525,88254.0,88244.0,0.0113384]
[1766215516880,0.02836,88255.0,88244.0,0.0113384]
[1766215524281,0.02836,88255.0,88240.0,0.02836]
[1766215525276,0.02836,88255.0,88245.0,0.0113382]
[1766215530690,0.02836,88255.0,88246.0,0.0113381]
[1766215532591,0.02836,88255.0,88240.0,0.36763525]
[1766215533492,0.02836,88255.0,88240.0,0.02836]
[1766215534189,0.02836,88255.0,88244.0,0.0113384]
[1766215534788,0.02836,88255.0,88240.0,0.02836]
[1766215534983,0.02836,88255.0,88244.0,0.0113384]
[1766215536583,0.33927525,88254.0,88240.0,0.01592]
[1766215536786,0.02836,88255.0,88240.0,0.0172588]
[1766215537187,0.02836,88255.0,88240.0,0.0113388]
[1766215538589,0.02836,88255.0,88239.0,0.00016994]
[1766215540302,0.02836,88255.0,88243.0,0.0113385]
[1766215543905,0.02836,88255.0,88239.0,0.00016994]
[1766215544198,0.02836,88255.0,88243.0,0.0113385]
[1766215545591,0.02836,88255.0,88246.0,0.0113381]
[1766215547105,0.02836,88255.0,88239.0,0.00016994]
[1766215550195,0.02836,88255.0,88244.0,0.0113384]
[1766215557307,0.02836,88255.0,88239.0,0.00016994]
[1766215558210,0.02836,88255.0,88244.0,0.0113384]
[1766215566713,0.02836,88255.0,88239.0,0.00016994]
[1766215567218,0.0113372,88254.0,88237.0,0.01592]
[1766215568421,0.02836,88255.0,88237.0,0.01592]
[1766215568913,0.02836,88255.0,88238.0,0.0113391]
[1766215570814,0.02836,88255.0,88241.0,0.0113387]
[1766215571515,0.33930685,88251.0,88237.0,0.0072592]
[1766215571819,0.02836,88255.0,88232.0,0.00764]
[1766215572021,0.00016994,88252.0,88232.0,0.00764]
[1766215572221,0.00016994,88252.0,88237.0,0.0113392]
[1766215572519,0.00016994,88252.0,88233.0,0.0113397]
[1766215573909,0.00016994,88252.0,88236.0,0.0113394]
[1766215577520,0.00016994,88252.0,88232.0,0.00764]
[1766215577727,0.00016994,88252.0,88234.0,0.0113397]
[1766215585248,0.00016994,88252.0,88229.0,0.08158354]
[1766215587350,0.00016994,88252.0,88235.0,0.0113395]
[1766215590445,0.00016994,88252.0,88229.0,0.08158354]
[1766215592247,0.00016994,88252.0,88236.0,0.0113393]
[1766215595951,0.00016994,88252.0,88230.0,0.08158354]
[1766215598251,0.00016994,88252.0,88235.0,0.0113395]
[1766215599836,0.33937569,88250.0,88232.0,0.0113399]
[1766215600041,0.0113379,88248.0,88222.0,0.02344]
[1766215601144,0.33937569,88250.0,88222.0,0.02344]
[1766215601338,0.33937569,88250.0,88228.0,0.0113404]
[1766215602945,0.0113378,88249.0,88227.0,0.0113405]
[1766215604449,0.02836,88248.0,88227.0,0.0113405]
[1766215605249,0.011338,88247.0,88227.0,0.0113405]
[1766215608257,0.011338,88247.0,88223.0,0.011341]
[1766215609857,0.02836,88248.0,88223.0,0.011341]
[1766215609858,0.0113384,88244.0,88223.0,0.011341]
[1766215610156,0.02836,88243.0,88223.0,0.011341]
[1766215610354,0.0113387,88242.0,88222.0,0.02344]
[1766215610658,0.0113387,88242.0,88223.0,0.0113411]
[1766215610958,0.02836,88243.0,88223.0,0.0113411]
[1766215611454,0.02836,88243.0,88226.0,0.0113407]
[1766215613059,0.02836,88243.0,88222.0,0.02344]
[1766215613452,0.33943789,88240.0,88222.0,0.02344]
[1766215614253,0.33943789,88240.0,88226.0,0.0113406]
[1766215617063,0.02836,88243.0,88226.0,0.0113406]
[1766215622868,0.02836,88243.0,88231.0,0.01134]
[1766215625069,0.02836,88243.0,88233.0,0.0113398]
[1766215625959,0.00016994,88252.0,88233.0,0.0113398]
[1766215626269,0.05499761,88251.0,88233.0,0.0113398]
[1766215626568,0.02663761,88250.0,88233.0,0.0113398]
[1766215628875,0.02836,88249.0,88230.0,0.33943789]
[1766215629179,0.02836,88249.0,88238.0,0.0113392]
[1766215630256,0.02836,88248.0,88222.0,0.02344]
[1766215631767,0.02836,88247.0,88235.0,0.0113394]
[1766215632269,0.02836,88247.0,88231.0,0.01134]
[1766215635474,0.33943789,88250.0,88231.0,0.01134]
[1766215635673,0.02836,88249.0,88231.0,0.01134]
[1766215637275,0.02836,88249.0,88234.0,0.0113396]
[1766215637680,0.02836,88249.0,88230.0,0.35077799]
[1766215637970,0.02836,88249.0,88233.0,0.0113398]
[1766215639279,0.02666758,88248.0,88233.0,0.0113398]
[1766215639481,0.02836,88249.0,88233.0,0.0113398]
[1766215639685,0.02666772,88248.0,88233.0,0.0113398]
[1766215639874,0.02836,88249.0,88233.0,0.0113398]
[1766215640176,0.02666772,88248.0,88233.0,0.0113398]
[1766215640376,0.02836,88249.0,88233.0,0.0113398]
[1766215640577,0.02666784,88248.0,88233.0,0.0113398]
[1766215640769,0.02836,88249.0,88233.0,0.0113398]
[1766215640970,0.02666784,88248.0,88233.0,0.0113398]
[1766215641170,0.02836,88249.0,88233.0,0.0113398]
[1766215641369,0.02666787,88248.0,88233.0,0.0113398]
[1766215641579,0.02836,88249.0,88233.0,0.0113398]
[1766215641780,0.02666788,88248.0,88233.0,0.0113398]
[1766215641982,0.02836,88249.0,88233.0,0.0113398]
[1766215642175,0.02666786,88248.0,88233.0,0.0113398]
[1766215642377,0.02836,88249.0,88233.0,0.0113398]
[1766215642582,0.02666811,88248.0,88233.0,0.0113398]
[1766215642880,0.02836,88249.0,88233.0,0.0113398]
[1766215643082,0.02666811,88248.0,88233.0,0.0113398]
[1766215643281,0.02836,88249.0,88233.0,0.0113398]
[1766215643469,0.02666828,88248.0,88233.0,0.0113398]
[1766215643671,0.02836,88249.0,88233.0,0.0113398]
[1766215643883,0.02666818,88248.0,88233.0,0.0113398]
[1766215644186,0.02836,88249.0,88233.0,0.0113398]
[1766215644482,0.02666812,88248.0,88233.0,0.0113398]
[1766215644786,0.02836,88249.0,88233.0,0.0113398]
[1766215644984,0.02666826,88248.0,88233.0,0.0113398]
[1766215645185,0.02836,88249.0,88233.0,0.0113398]
[1766215645485,0.02666871,88248.0,88230.0,0.33938157]
[1766215645782,0.02836,88249.0,88230.0,0.33938157]
[1766215646083,0.02666863,88248.0,88230.0,0.33938157]
[1766215646283,0.02836,88249.0,88230.0,0.33938157]
[1766215646487,0.02666862,88248.0,88230.0,0.33938157]
[1766215646674,0.02836,88249.0,88230.0,0.33938157]
[1766215646983,0.02666867,88248.0,88230.0,0.33938157]
[1766215647193,0.02836,88249.0,88234.0,0.0113396]
[1766215647483,0.02666866,88248.0,88234.0,0.0113396]
[1766215647674,0.02836,88249.0,88234.0,0.0113396]
[1766215647874,0.02666883,88248.0,88234.0,0.0113396]
[1766215648079,0.02836,88249.0,88234.0,0.0113396]
[1766215648281,0.02666902,88248.0,88234.0,0.0113396]
[1766215648476,0.02836,88249.0,88234.0,0.0113396]
[1766215648678,0.02666922,88248.0,88234.0,0.0113396]
[1766215648878,0.02836,88249.0,88234.0,0.0113396]
[1766215649078,0.05502922,88248.0,88234.0,0.0113396]
[1766215649278,0.02836,88248.0,88234.0,0.0113396]
[1766215651486,0.02666991,88247.0,88234.0,0.0113396]
[1766215651786,0.02836,88248.0,88234.0,0.0113396]
[1766215652984,0.02836,88248.0,88231.0,0.01134]
[1766215653281,0.02836,88248.0,88230.0,0.33938157]
[1766215653487,0.02836,88248.0,88231.0,0.01134]
[1766215654380,0.02832,88248.0,88231.0,0.01134]
[1766215656686,0.02667172,88247.0,88231.0,0.01134]
[1766215656886,0.02832,88248.0,88231.0,0.01134]
[1766215660491,0.02832,88248.0,88234.0,0.0113397]
[1766215681705,0.00016994,88252.0,88240.0,0.0113389]
[1766215681905,0.02836,88251.0,88242.0,0.0113386]
[1766215682108,1.446,88261.0,88242.0,0.0113386]
[1766215682109,0.00836,88252.0,88242.0,0.0113386]
[1766215682405,0.02836,88255.0,88242.0,0.0113386]
[1766215683001,0.02836,88255.0,88240.0,0.00016994]
[1766215691814,0.02836,88255.0,88240.0,0.01150884]
[1766215698316,0.02836,88255.0,88240.0,0.0113389]
[1766215698507,0.0113382,88246.0,88229.0,0.02836]
[1766215698711,0.0113381,88247.0,88229.0,0.02832]
[1766215698914,0.0113384,88244.0,88229.0,0.02832]
[1766215699113,0.0113381,88247.0,88229.0,0.02832]
[1766215699319,0.0113382,88246.0,88229.0,0.02832]
[1766215699819,0.35072288,88250.0,88229.0,0.0396603]
[1766215700017,0.33938518,88250.0,88234.0,0.0113396]
[1766215700219,0.02836,88255.0,88234.0,0.0113396]
[1766215701312,0.02836,88255.0,88229.0,0.02832]
[1766215701616,0.02836,88255.0,88230.0,0.33938518]
[1766215702211,0.02836,88255.0,88237.0,0.0113392]
[1766215702411,0.02836,88255.0,88240.0,0.0113388]
[1766215712029,0.02836,88255.0,88236.0,0.0113393]
[1766215720831,0.02836,88255.0,88230.0,0.33934721]
[1766215720832,0.00016994,88257.0,88239.0,0.011339]
[1766215721026,0.02852994,88257.0,88243.0,0.0113385]
[1766215721233,0.02852994,88257.0,88246.0,0.0113381]
[1766215721434,0.00016994,88257.0,88246.0,0.0113381]
[1766215721629,0.00016994,88257.0,88240.0,0.33934721]
[1766215722346,0.00230617,88270.0,88247.0,0.33934721]
[1766215722533,0.00230617,88270.0,88248.0,0.02836]
[1766215722733,0.00208,88275.0,88262.0,0.011336]
[1766215724643,0.00208,88275.0,88260.0,0.00016994]
[1766215726129,0.00208,88275.0,88261.0,0.0113362]
[1766215726335,0.00208,88275.0,88264.0,0.0113357]
[1766215730746,0.00016994,88277.0,88264.0,0.0113357]
[1766215730946,0.00016994,88277.0,88260.0,0.00016994]
[1766215730947,0.00016994,88277.0,88260.0,0.01150624]
[1766215735352,0.00016994,88277.0,88260.0,0.3506504]
[1766215737262,0.00016994,88277.0,88260.0,0.01150624]
[1766215737456,0.00016994,88277.0,88260.0,0.3393141]
[1766215737651,0.0113343,88276.0,88260.0,0.00016994]
[1766215737855,0.0113343,88276.0,88260.0,0.3393141]
[1766215738848,0.0113343,88276.0,88260.0,0.00016994]
[1766215739050,0.0113343,88276.0,88260.0,0.3393141]
[1766215739253,0.33914416,88270.0,88260.0,0.00016994]
[1766215739656,0.33914416,88270.0,88256.0,0.00152]
[1766215740654,0.0113351,88270.0,88256.0,0.00152]
[1766215740861,0.35047926,88270.0,88256.0,0.00152]
[1766215741651,0.35047926,88270.0,88254.0,0.00216]
[1766215742451,0.33914416,88270.0,88254.0,0.00216]
[1766215743360,0.33914416,88270.0,88251.0,0.0113375]
[1766215743562,0.33914416,88270.0,88252.0,0.02836]
[1766215745354,0.33914416,88270.0,88253.0,0.0113371]
[1766215747868,0.33920874,88270.0,88253.0,0.0113371]
[1766215749466,0.33920874,88270.0,88253.0,0.07238138]
[1766215750370,0.33920874,88270.0,88254.0,0.06104428]
[1766215750966,0.33920874,88270.0,88255.0,0.011337]
[1766215751461,0.33920874,88270.0,88255.0,0.06104428]
[1766215751856,0.33920874,88270.0,88255.0,0.07238128]
[1766215752460,0.02836,88269.0,88256.0,0.06104428]
[1766215753169,0.02836,88269.0,88256.0,0.00104428]
[1766215753365,0.02836,88269.0,88252.0,0.02836]
[1766215754162,0.02836,88269.0,88255.0,0.011337]
[1766215758568,0.02836,88269.0,88252.0,0.02836]
[1766215758960,0.02836,88269.0,88253.0,0.0113372]
[1766215759777,0.02836,88269.0,88252.0,0.02836]
[1766215759972,0.02836,88269.0,88251.0,0.02836]
[1766215760159,0.33920874,88261.0,88245.0,0.0113382]
[1766215760465,0.02836,88262.0,88245.0,0.0113382]
[1766215760770,0.02836,88262.0,88246.0,0.02836]
[1766215760971,0.02836,88262.0,88247.0,0.011338]
[1766215761760,0.02836,88262.0,88247.0,0.039698]
[1766215763471,0.02836,88262.0,88247.0,0.02836]
[1766215764570,0.02836,88262.0,88249.0,0.0113377]